[Event "FIDE World Cup G10-A 2024"]
[Site "Batumi"]
[Date "2024.06.29"]
[Round "7.1"]
[White "Zhang, Jianning"]
[Black "Filippova, Milana"]
[Result "0-1"]
[ECO "D31"]
[WhiteElo "1665"]
[BlackElo "1633"]
[Annotator "NA RC"]
[PlyCount "70"]
[EventDate "2024.06.23"]
[EventType "swiss"]
[EventCountry "GEO"]
[SourceTitle "playchess.com"]
[Source "ChessBase"]
[SourceQuality "1"]
[TimeControl "5400+30"]

1. d4 {[%emt 0:00:01]} d5 {[%emt 0:00:24]} 2. c4 {[%emt 0:00:14]} e6 {[%emt 0:00:20]} 3. Nc3 {[%emt 0:00:15]} a6 {[%emt 0:00:50]} 4. cxd5 {[%emt 0:09:30]} exd5 {[%emt 0:00:11]} 5. Qb3 {[%emt 0:00:45]} c5 {[%emt 0:01:26]} 6. Qxd5 {[%emt 0:03:30]} cxd4 {[%emt 0:00:44]} 7. Qxd8+ {[%emt 0:00:10]} Kxd8 {[%emt 0:00:05]} 8. Nd5 {[%emt 0:00:45]} Be6 {[%emt 0:01:24]} 9. Nb6 {[%emt 0:01:35]} Ra7 {[%emt 0:00:12]} 10. Nf3 {[%emt 0:03:15]} Nc6 {[%emt 0:05:46]} 11. Bf4 {[%emt 0:11:40]} Bc5 {[%emt 0:05:19]} 12. Na4 {[%emt 0:00:30]} Bb4+ {[%emt 0:14:15]} 13. Bd2 {[%emt 0:04:25]} b5 {[%emt 0:10:41]} 14. Bxb4 {[%emt 0:01:10]} Nxb4 {[%emt 0:00:12]} 15. Rd1 {[%emt 0:00:25]} Nc2+ {[%emt 0:35:35]} 16. Kd2 {[%emt 0:00:05]} Rc7 {[%emt 0:01:16]} 17. Rc1 {[%emt 0:04:35]} Nf6 {[%emt 0:04:43]} 18. Ng5 {[%emt 0:03:55]} Bf5 {[%emt 0:01:08]} 19. Nb6 {[%emt 0:09:00]} h6 {[%emt 0:02:05]} 20. Nf3 {[%emt 0:00:40]} Ne4+ {[%emt 0:00:26]} 21. Kd1 {[%emt 0:01:55]} Nxf2+ {[%emt 0:00:20]} 22. Kd2 {[%emt 0:00:10]} Ne4+ {[%emt 0:00:26]} 23. Kd3 {[%emt 0:01:30]} Nb4+ {[%emt 0:00:38]} 24. Kxd4 {[%emt 0:00:15]} Rxc1 {[%emt 0:00:13]} 25. g3 {[%emt 0:00:25]} Nf2 {[%emt 0:01:20]} 26. Rg1 {[%emt 0:00:15]} Nc2+ {[%emt 0:01:51]} 27. Ke5 {[%emt 0:00:36]} Ne3 {[%emt 0:01:07]} 28. Nd2 {[%emt 0:01:34]} Re8+ {[%emt 0:01:26]} 29. Kf4 {[%emt 0:00:21]} g5+ {[%emt 0:00:26]} 30. Kf3 {[%emt 0:00:34]} Nfd1 {[%emt 0:00:43]} 31. h3 {[%emt 0:01:05]} g4+ {[%emt 0:01:42]} 32. hxg4 {[%emt 0:01:11]} Bxg4+ {[%emt 0:00:14]} 33. Kf4 {[%emt 0:00:04]} Rc5 {[%emt 0:00:17]} 34. Nd5 {[%emt 0:03:10]} Rxd5 {[%emt 0:00:10]} 35. Bg2 {[%emt 0:00:30]} Rf5# {[%emt 0:00:12]} 0-1

[Event "FIDE World Cup G10-A 2024"]
[Site "Batumi"]
[Date "2024.06.29"]
[Round "7.2"]
[White "Milner, Romi"]
[Black "Kiyana Parihar"]
[Result "1/2-1/2"]
[ECO "D02"]
[WhiteElo "1866"]
[BlackElo "1559"]
[Annotator "NA RC"]
[PlyCount "174"]
[EventDate "2024.06.23"]
[EventType "swiss"]
[EventCountry "GEO"]
[SourceTitle "playchess.com"]
[Source "ChessBase"]
[SourceQuality "1"]
[TimeControl "5400+30"]

1. d4 {[%emt 0:00:02]} d5 {[%emt 0:00:10]} 2. Nf3 {[%emt 0:00:14]} Nf6 {[%emt 0:00:06]} 3. c3 {[%emt 0:00:13]} c5 {[%emt 0:00:15]} 4. dxc5 {[%emt 0:05:10]} e6 {[%emt 0:01:20]} 5. Bf4 {[%emt 0:00:22]} Bxc5 {[%emt 0:00:28]} 6. e3 {[%emt 0:00:49]} Nc6 {[%emt 0:01:11]} 7. Nbd2 {[%emt 0:01:54]} O-O {[%emt 0:01:35]} 8. Bd3 {[%emt 0:00:36]} Bd6 {[%emt 0:03:12]} 9. Bg3 {[%emt 0:01:19]} Bxg3 {[%emt 0:02:49]} 10. hxg3 {[%emt 0:00:23]} e5 {[%emt 0:02:13]} 11. e4 {[%emt 0:12:08]} Bg4 {[%emt 0:20:13]} 12. exd5 {[%emt 0:24:13]} Qxd5 {[%emt 0:01:37]} 13. Be2 {[%emt 0:01:01]} e4 {[%emt 0:06:20]} 14. Nh2 {[%emt 0:01:04]} Bxe2 {[%emt 0:00:30]} 15. Qxe2 {[%emt 0:00:19]} Ne5 {[%emt 0:04:26]} 16. O-O {[%emt 0:01:42]} Qd3 {[%emt 0:06:17]} 17. Rfe1 {[%emt 0:01:02]} Qxe2 {[%emt 0:10:23]} 18. Rxe2 {[%emt 0:00:01]} Nd3 {[%emt 0:06:12]} 19. Nxe4 {[%emt 0:01:10]} Nxe4 {[%emt 0:00:47]} 20. Rxe4 {[%emt 0:00:01]} Rfe8 {[%emt 0:06:24]} 21. Rd4 {[%emt 0:03:35]} Nxb2 {[%emt 0:01:48]} 22. Rb4 {[%emt 0:00:45]} Nd3 {[%emt 0:05:16]} 23. Rxb7 {[%emt 0:02:04]} Re2 {[%emt 0:01:09]} 24. Rd1 {[%emt 0:06:12]} Nxf2 {[%emt 0:07:06]} 25. Rf1 {[%emt 0:00:22]} Ne4 {[%emt 0:03:41]} 26. Rfxf7 {[%emt 0:01:41]} Re1+ {[%emt 0:01:30]} 27. Nf1 {[%emt 0:00:23]} Nd2 {[%emt 0:01:20]} 28. Rxg7+ {[%emt 0:01:42]} Kf8 {[%emt 0:00:08]} 29. Rgf7+ {[%emt 0:02:32]} Kg8 {[%emt 0:01:27]} 30. Rbd7 {[%emt 0:02:50]} Nc4 {[%emt 0:00:39]} 31. Rxh7 {[%emt 0:04:20]} Ne3 {[%emt 0:01:05]} 32. Rhf7 {[%emt 0:02:39]} Rb8 {[%emt 0:00:43]} 33. Rf2 {[%emt 0:02:01]} Rf8 {[%emt 0:01:28]} 34. Rxf8+ {[%emt 0:03:13]} Kxf8 {[%emt 0:00:02]} 35. Kf2 {[%emt 0:00:17]} Rd1 {[%emt 0:00:48]} 36. Rd2 {[%emt 0:01:22]} Rxd2+ {[%emt 0:00:31]} 37. Nxd2 {[%emt 0:00:09]} Nd1+ {[%emt 0:00:03]} 38. Kf3 {[%emt 0:00:31]} Nxc3 {[%emt 0:00:04]} 39. a3 {[%emt 0:00:08]} Kf7 {[%emt 0:00:24]} 40. Ke3 {[%emt 0:00:38]} Kg6 {[%emt 0:00:34]} 41. Ne4 {[%emt 0:01:11]} Nb5 {[%emt 0:00:45]} 42. a4 {[%emt 0:00:49]} Nc7 {[%emt 0:00:38]} 43. Nd6 {[%emt 0:00:00]} Ne6 {[%emt 0:00:37]} 44. Nc8 {[%emt 0:00:00]} a6 {[%emt 0:00:29]} 45. Ne7+ {[%emt 0:00:14]} Kf7 {[%emt 0:00:16]} 46. Nc6 {[%emt 0:00:30]} Nc5 {[%emt 0:00:08]} 47. a5 {[%emt 0:00:09]} Ke6 {[%emt 0:00:20]} 48. Kd4 {[%emt 0:00:53]} Nb7 {[%emt 0:00:49]} 49. g4 {[%emt 0:00:55]} Kf6 {[%emt 0:00:36]} 50. Ke4 {[%emt 0:00:18]} Kg5 {[%emt 0:00:43]} 51. Kf3 {[%emt 0:00:13]} Nc5 {[%emt 0:00:41]} 52. Nb4 {[%emt 0:00:36]} Nb7 {[%emt 0:00:30]} 53. Nxa6 {[%emt 0:00:37]} Nxa5 {[%emt 0:00:05]} 54. Nc5 {[%emt 0:00:13]} Nc6 {[%emt 0:00:37]} 55. Ne4+ {[%emt 0:00:08]} Kg6 {[%emt 0:00:15]} 56. Kf4 {[%emt 0:00:17]} Nd4 {[%emt 0:00:34]} 57. Ng3 {[%emt 0:00:43]} Ne6+ {[%emt 0:00:24]} 58. Ke5 {[%emt 0:00:27]} Nc5 {[%emt 0:00:27]} 59. Ne4 {[%emt 0:01:02]} Nd3+ {[%emt 0:00:12]} 60. Kd4 {[%emt 0:00:11]} Nf4 {[%emt 0:00:18]} 61. g3 {[%emt 0:00:15]} Ne2+ {[%emt 0:00:33]} 62. Ke3 {[%emt 0:00:14]} Nc1 {[%emt 0:00:22]} 63. Nc3 {[%emt 0:01:59]} Kg5 {[%emt 0:00:33]} 64. Kf3 {[%emt 0:00:12]} Nd3 {[%emt 0:00:36]} 65. Ne4+ {[%emt 0:00:10]} Kg6 {[%emt 0:00:24]} 66. Nf2 {[%emt 0:01:19]} Ne5+ {[%emt 0:00:24]} 67. Kf4 {[%emt 0:00:05]} Nf7 {[%emt 0:00:47]} 68. Ne4 {[%emt 0:00:20]} Nd8 {[%emt 0:05:13]} 69. Nd6 {[%emt 0:03:01]} Ne6+ {[%emt 0:00:00]} 70. Ke5 {[%emt 0:00:14]} Ng5 {[%emt 0:00:00]} 71. Nf5 {[%emt 0:00:48]} Nf3+ {[%emt 0:00:00]} 72. Kf4 {[%emt 0:00:15]} Ng5 {[%emt 0:00:00]} 73. Nh4+ {[%emt 0:01:33]} Kf6 {[%emt 0:00:00]} 74. Nf3 {[%emt 0:00:11]} Nxf3 {[%emt 0:00:44]} 75. Kxf3 {[%emt 0:00:19]} Kg5 {[%emt 0:00:02]} 76. Kf2 {[%emt 0:00:44]} Kxg4 {[%emt 0:00:04]} 77. Kg2 {[%emt 0:00:07]} Kg5 {[%emt 0:00:07]} 78. Kf3 {[%emt 0:00:06]} Kf5 {[%emt 0:00:06]} 79. g4+ {[%emt 0:00:06]} Kg5 {[%emt 0:00:04]} 80. Kg3 {[%emt 0:00:05]} Kg6 {[%emt 0:00:07]} 81. Kh4 {[%emt 0:00:09]} Kh6 {[%emt 0:00:04]} 82. g5+ {[%emt 0:00:06]} Kg6 {[%emt 0:00:04]} 83. Kg4 {[%emt 0:00:06]} Kg7 {[%emt 0:00:23]} 84. Kf5 {[%emt 0:00:08]} Kf7 {[%emt 0:00:09]} 85. g6+ {[%emt 0:00:06]} Kg7 {[%emt 0:00:07]} 86. Kg5 {[%emt 0:00:06]} Kg8 {[%emt 0:00:06]} 87. Kf6 {[%emt 0:00:13]} Kf8 {[%emt 0:00:03]} 1/2-1/2

[Event "FIDE World Cup G10-A 2024"]
[Site "Batumi"]
[Date "2024.06.29"]
[Round "7.3"]
[White "Khusnitdinova, Husnorakhon"]
[Black "Sim, En Rui Audelle"]
[Result "1/2-1/2"]
[ECO "D00"]
[WhiteElo "1514"]
[BlackElo "1443"]
[Annotator "NA RC"]
[PlyCount "82"]
[EventDate "2024.06.23"]
[EventType "swiss"]
[EventCountry "GEO"]
[SourceTitle "playchess.com"]
[Source "ChessBase"]
[SourceQuality "1"]
[TimeControl "5400+30"]

1. d4 {[%emt 0:00:01]} Nf6 {[%emt 0:00:05]} 2. Nc3 {[%emt 0:00:18]} d5 {[%emt 0:00:17]} 3. Bf4 {[%emt 0:00:06]} c6 {[%emt 0:00:21]} 4. e3 {[%emt 0:00:38]} Bf5 {[%emt 0:00:25]} 5. f3 {[%emt 0:00:23]} e6 {[%emt 0:00:17]} 6. g4 {[%emt 0:00:16]} Bg6 {[%emt 0:00:11]} 7. h4 {[%emt 0:00:23]} h6 {[%emt 0:00:47]} 8. Bd3 {[%emt 0:00:22]} Bxd3 {[%emt 0:00:34]} 9. Qxd3 {[%emt 0:00:01]} Bd6 {[%emt 0:00:29]} 10. Nge2 {[%emt 0:00:22]} Na6 {[%emt 0:00:44]} 11. a3 {[%emt 0:01:09]} c5 {[%emt 0:00:26]} 12. Qb5+ {[%emt 0:00:19]} Kf8 {[%emt 0:01:01]} 13. Bxd6+ {[%emt 0:00:34]} Qxd6 {[%emt 0:00:28]} 14. O-O-O {[%emt 0:08:48]} Qc6 {[%emt 0:29:39]} 15. Qd3 {[%emt 0:03:45]} c4 {[%emt 0:00:56]} 16. Qd2 {[%emt 0:00:00]} b5 {[%emt 0:00:17]} 17. g5 {[%emt 0:02:10]} Nd7 {[%emt 0:00:50]} 18. Na2 {[%emt 0:00:13]} Rb8 {[%emt 0:01:54]} 19. Nb4 {[%emt 0:00:42]} Nxb4 {[%emt 0:00:34]} 20. Qxb4+ {[%emt 0:01:32]} Kg8 {[%emt 0:00:20]} 21. Nf4 {[%emt 0:04:20]} Qc7 {[%emt 0:06:41]} 22. Qe7 {[%emt 0:01:06]} Qd8 {[%emt 0:03:41]} 23. Qxd8+ {[%emt 0:00:42]} Rxd8 {[%emt 0:00:13]} 24. g6 {[%emt 0:00:22]} Nf6 {[%emt 0:01:07]} 25. gxf7+ {[%emt 0:01:35]} Kxf7 {[%emt 0:00:13]} 26. h5 {[%emt 0:00:04]} Rhe8 {[%emt 0:00:29]} 27. Ng6 {[%emt 0:01:17]} Nd7 {[%emt 0:01:22]} 28. e4 {[%emt 0:01:20]} Nf6 {[%emt 0:01:03]} 29. Rh4 {[%emt 0:00:29]} a5 {[%emt 0:01:08]} 30. c3 {[%emt 0:00:36]} Rc8 {[%emt 0:03:54]} 31. Kc2 {[%emt 0:00:50]} Kg8 {[%emt 0:01:07]} 32. Ne5 {[%emt 0:01:10]} Re7 {[%emt 0:03:33]} 33. Rg1 {[%emt 0:10:46]} Rb7 {[%emt 0:02:07]} 34. Rf4 {[%emt 0:03:35]} Kh7 {[%emt 0:02:17]} 35. Ng6 {[%emt 0:12:42]} Nxh5 {[%emt 0:02:49]} 36. Rh4 {[%emt 0:00:08]} Nf6 {[%emt 0:00:45]} 37. e5 {[%emt 0:00:01]} Ng8 {[%emt 0:01:15]} 38. Rf4 {[%emt 0:00:25]} Re8 {[%emt 0:05:31]} 39. Nf8+ {[%emt 0:01:52]} Kh8 {[%emt 0:00:00]} 40. Ng6+ {[%emt 0:06:44]} Kh7 {[%emt 0:00:00]} 41. Rf8 {[%emt 0:00:15]} Reb8 {[%emt 0:01:58]} 1/2-1/2

[Event "FIDE World Cup G10-A 2024"]
[Site "Batumi"]
[Date "2024.06.29"]
[Round "7.4"]
[White "Ahmadli, Mehriban"]
[Black "Rzadkowska, Lila"]
[Result "0-1"]
[ECO "B42"]
[WhiteElo "1686"]
[BlackElo "1696"]
[Annotator "NA RC"]
[PlyCount "80"]
[EventDate "2024.06.23"]
[EventType "swiss"]
[EventCountry "GEO"]
[SourceTitle "playchess.com"]
[Source "ChessBase"]
[SourceQuality "1"]
[TimeControl "5400+30"]

1. e4 {[%emt 0:00:02]} c5 {[%emt 0:00:11]} 2. Nf3 {[%emt 0:00:10]} e6 {[%emt 0:00:07]} 3. d4 {[%emt 0:00:10]} cxd4 {[%emt 0:00:05]} 4. Nxd4 {[%emt 0:00:05]} a6 {[%emt 0:00:23]} 5. Bd3 {[%emt 0:00:20]} Bc5 {[%emt 0:00:27]} 6. Nb3 {[%emt 0:00:13]} Ba7 {[%emt 0:00:11]} 7. Qe2 {[%emt 0:00:02]} d6 {[%emt 0:01:01]} 8. Be3 {[%emt 0:00:11]} Nf6 {[%emt 0:01:26]} 9. Bxa7 {[%emt 0:01:44]} Rxa7 {[%emt 0:00:08]} 10. Nc3 {[%emt 0:00:23]} b5 {[%emt 0:02:22]} 11. O-O-O {[%emt 0:02:41]} b4 {[%emt 0:11:20]} 12. Nb1 {[%emt 0:01:14]} Nbd7 {[%emt 0:01:01]} 13. f4 {[%emt 0:04:16]} Qc7 {[%emt 0:09:32]} 14. N1d2 {[%emt 0:10:49]} e5 {[%emt 0:09:56]} 15. f5 {[%emt 0:04:59]} a5 {[%emt 0:00:31]} 16. Nc4 {[%emt 0:08:41]} a4 {[%emt 0:03:43]} 17. Na1 {[%emt 0:02:34]} a3 {[%emt 0:09:47]} 18. b3 {[%emt 0:02:37]} d5 {[%emt 0:01:31]} 19. exd5 {[%emt 0:12:59]} Nxd5 {[%emt 0:03:12]} 20. Rde1 {[%emt 0:15:02]} Nc3 {[%emt 0:04:58]} 21. Qf2 {[%emt 0:04:09]} Nxa2+ {[%emt 0:01:26]} 22. Kb1 {[%emt 0:03:00]} Nc3+ {[%emt 0:00:13]} 23. Kc1 {[%emt 0:00:08]} O-O {[%emt 0:02:39]} 24. g4 {[%emt 0:08:05]} Ba6 {[%emt 0:07:53]} 25. g5 {[%emt 0:04:56]} f6 {[%emt 0:06:08]} 26. h4 {[%emt 0:06:06]} Qc5 {[%emt 0:04:58]} 27. Qxc5 {[%emt 0:06:13]} Nxc5 {[%emt 0:00:22]} 28. gxf6 {[%emt 0:00:21]} gxf6 {[%emt 0:00:19]} 29. Rhg1+ {[%emt 0:00:22]} Rg7 {[%emt 0:00:18]} 30. Rxg7+ {[%emt 0:00:51]} Kxg7 {[%emt 0:00:06]} 31. Rg1+ {[%emt 0:00:11]} Kh8 {[%emt 0:02:01]} 32. Kd2 {[%emt 0:02:21]} e4 {[%emt 0:01:45]} 33. Bf1 {[%emt 0:00:32]} Rd8+ {[%emt 0:00:48]} 34. Ke3 {[%emt 0:00:24]} Rd1 {[%emt 0:01:09]} 35. h5 {[%emt 0:00:37]} Bxc4 {[%emt 0:01:29]} 36. bxc4 {[%emt 0:00:07]} Rxa1 {[%emt 0:00:20]} 37. h6 {[%emt 0:00:10]} Rd1 {[%emt 0:00:51]} 38. Rg7 {[%emt 0:00:47]} Rd7 {[%emt 0:00:38]} 39. Rg1 {[%emt 0:00:08]} a2 {[%emt 0:00:13]} 40. Bh3 {[%emt 0:00:01]} Nd1+ {[%emt 0:15:02]} 0-1

[Event "FIDE World Cup G10-A 2024"]
[Site "Batumi"]
[Date "2024.06.29"]
[Round "7.5"]
[White "Samhita Pungavanam"]
[Black "Zhumambayeva Aliya"]
[Result "0-1"]
[ECO "B22"]
[WhiteElo "1596"]
[BlackElo "1625"]
[Annotator "NA RC"]
[PlyCount "74"]
[EventDate "2024.06.23"]
[EventType "swiss"]
[EventCountry "GEO"]
[SourceTitle "playchess.com"]
[Source "ChessBase"]
[SourceQuality "1"]
[TimeControl "5400+30"]

1. e4 {[%emt 0:00:03]} c5 {[%emt 0:00:33]} 2. Nf3 {[%emt 0:00:37]} e6 {[%emt 0:00:07]} 3. c3 {[%emt 0:01:27]} Nf6 {[%emt 0:00:06]} 4. e5 {[%emt 0:02:08]} Nd5 {[%emt 0:00:06]} 5. d4 {[%emt 0:03:15]} cxd4 {[%emt 0:00:10]} 6. cxd4 {[%emt 0:01:16]} d6 {[%emt 0:00:18]} 7. Bc4 {[%emt 0:05:57]} Nb6 {[%emt 0:00:52]} 8. Bd3 {[%emt 0:06:42]} Nc6 {[%emt 0:00:48]} 9. O-O {[%emt 0:02:39]} Be7 {[%emt 0:01:25]} 10. Nc3 {[%emt 0:03:23]} d5 {[%emt 0:07:16]} 11. Be3 {[%emt 0:03:12]} O-O {[%emt 0:06:11]} 12. Nd2 {[%emt 0:02:24]} f5 {[%emt 0:01:34]} 13. f4 {[%emt 0:02:27]} Bb4 {[%emt 0:04:56]} 14. Rf3 {[%emt 0:07:00]} Bd7 {[%emt 0:01:25]} 15. Rh3 {[%emt 0:01:26]} Be8 {[%emt 0:01:09]} 16. Be2 {[%emt 0:05:58]} Rc8 {[%emt 0:02:45]} 17. Bh5 {[%emt 0:02:54]} g6 {[%emt 0:00:23]} 18. Bf3 {[%emt 0:03:58]} Na5 {[%emt 0:03:25]} 19. Rc1 {[%emt 0:03:35]} Bxc3 {[%emt 0:00:35]} 20. bxc3 {[%emt 0:00:06]} Nbc4 {[%emt 0:00:56]} 21. Nxc4 {[%emt 0:02:38]} Nxc4 {[%emt 0:02:40]} 22. Bf2 {[%emt 0:00:29]} Qa5 {[%emt 0:06:42]} 23. Qc2 {[%emt 0:19:02]} Ba4 {[%emt 0:02:11]} 24. Qe2 {[%emt 0:04:51]} Rc6 {[%emt 0:05:40]} 25. Bh4 {[%emt 0:02:08]} Nb6 {[%emt 0:06:38]} 26. Be7 {[%emt 0:01:59]} Rfc8 {[%emt 0:02:45]} 27. Qf2 {[%emt 0:08:10]} Rxc3 {[%emt 0:10:50]} 28. Rf1 {[%emt 0:01:12]} Rc1 {[%emt 0:01:21]} 29. Be2 {[%emt 0:00:13]} Rxf1+ {[%emt 0:16:38]} 30. Bxf1 {[%emt 0:00:11]} Rc1 {[%emt 0:00:52]} 31. Qh4 {[%emt 0:02:27]} Rxf1+ {[%emt 0:01:57]} 32. Kxf1 {[%emt 0:00:59]} Qb5+ {[%emt 0:00:04]} 33. Kf2 {[%emt 0:01:32]} Qb2+ {[%emt 0:00:05]} 34. Kg3 {[%emt 0:00:26]} Qc3+ {[%emt 0:00:11]} 35. Kf2 {[%emt 0:00:07]} Qd2+ {[%emt 0:00:12]} 36. Kf3 {[%emt 0:00:59]} Bd1+ {[%emt 0:00:12]} 37. Kg3 {[%emt 0:00:18]} Qe3# {[%emt 0:00:04]} 0-1

[Event "FIDE World Cup G10-A 2024"]
[Site "Batumi"]
[Date "2024.06.29"]
[Round "7.6"]
[White "Saltkhutsishvili, Sara"]
[Black "Norkulova, Malika"]
[Result "0-1"]
[ECO "B90"]
[WhiteElo "1555"]
[BlackElo "1669"]
[Annotator "NA RC"]
[PlyCount "88"]
[EventDate "2024.06.23"]
[EventType "swiss"]
[EventCountry "GEO"]
[SourceTitle "playchess.com"]
[Source "ChessBase"]
[SourceQuality "1"]
[TimeControl "5400+30"]

1. e4 {[%emt 0:00:06]} c5 {[%emt 0:00:21]} 2. Nf3 {[%emt 0:00:44]} d6 {[%emt 0:00:07]} 3. d4 {[%emt 0:00:58]} cxd4 {[%emt 0:00:12]} 4. Nxd4 {[%emt 0:00:36]} Nf6 {[%emt 0:00:07]} 5. Nc3 {[%emt 0:01:37]} a6 {[%emt 0:00:09]} 6. h3 {[%emt 0:03:58]} e6 {[%emt 0:00:19]} 7. Be3 {[%emt 0:05:19]} Be7 {[%emt 0:01:50]} 8. Qd2 {[%emt 0:08:18]} b5 {[%emt 0:00:43]} 9. a3 {[%emt 0:13:01]} Bb7 {[%emt 0:00:18]} 10. f3 {[%emt 0:00:31]} Nbd7 {[%emt 0:00:25]} 11. g4 {[%emt 0:02:04]} Nb6 {[%emt 0:00:14]} 12. O-O-O {[%emt 0:04:37]} Rc8 {[%emt 0:01:28]} 13. Qf2 {[%emt 0:03:21]} Nfd7 {[%emt 0:00:28]} 14. Kb1 {[%emt 0:07:29]} Bh4 {[%emt 0:02:55]} 15. Qg1 {[%emt 0:02:02]} Be7 {[%emt 0:00:38]} 16. g5 {[%emt 0:08:16]} d5 {[%emt 0:01:22]} 17. exd5 {[%emt 0:06:00]} Nxd5 {[%emt 0:00:12]} 18. Nxd5 {[%emt 0:00:24]} Bxd5 {[%emt 0:00:05]} 19. Be2 {[%emt 0:02:10]} Qc7 {[%emt 0:02:14]} 20. Rc1 {[%emt 0:02:46]} Qa5 {[%emt 0:01:36]} 21. Qe1 {[%emt 0:04:33]} b4 {[%emt 0:01:26]} 22. Bd2 {[%emt 0:02:30]} Qb6 {[%emt 0:00:13]} 23. Be3 {[%emt 0:09:56]} bxa3 {[%emt 0:00:18]} 24. b3 {[%emt 0:00:31]} Bc5 {[%emt 0:00:33]} 25. Rd1 {[%emt 0:04:06]} Bxb3 {[%emt 0:01:58]} 26. Nxb3 {[%emt 0:02:10]} Bxe3 {[%emt 0:00:13]} 27. Bxa6 {[%emt 0:01:10]} Ra8 {[%emt 0:00:44]} 28. Bb5 {[%emt 0:01:33]} Qxb5 {[%emt 0:00:57]} 29. Qxe3 {[%emt 0:01:12]} a2+ {[%emt 0:01:03]} 30. Ka1 {[%emt 0:00:35]} O-O {[%emt 0:00:24]} 31. h4 {[%emt 0:00:32]} Rfc8 {[%emt 0:01:10]} 32. Qd2 {[%emt 0:02:32]} Qe5+ {[%emt 0:03:13]} 33. Nd4 {[%emt 0:00:46]} Nb6 {[%emt 0:00:07]} 34. Rhe1 {[%emt 0:00:21]} Qc5 {[%emt 0:00:13]} 35. Rc1 {[%emt 0:00:33]} Nc4 {[%emt 0:00:06]} 36. Qc3 {[%emt 0:00:33]} Ra3 {[%emt 0:00:22]} 37. Nb3 {[%emt 0:00:11]} Qb5 {[%emt 0:00:16]} 38. Qd4 {[%emt 0:00:31]} Na5 {[%emt 0:00:45]} 39. Nxa5 {[%emt 0:00:24]} Rxa5 {[%emt 0:00:06]} 40. Red1 {[%emt 0:00:29]} g6 {[%emt 0:00:31]} 41. Qf6 {[%emt 0:00:23]} Raa8 {[%emt 0:00:42]} 42. Rh1 {[%emt 0:00:49]} Rcb8 {[%emt 0:00:06]} 43. Rhd1 {[%emt 0:00:38]} Qb1+ {[%emt 0:00:10]} 44. Rxb1 {[%emt 0:00:11]} axb1=Q# {[%emt 0:00:04]} 0-1

[Event "FIDE World Cup G10-A 2024"]
[Site "Batumi"]
[Date "2024.06.29"]
[Round "7.7"]
[White "Babazade, Khadija"]
[Black "Nguyen Doan, Bao Anh Angelina"]
[Result "0-1"]
[ECO "E00"]
[WhiteElo "1541"]
[BlackElo "1611"]
[Annotator "NA RC"]
[PlyCount "51"]
[EventDate "2024.06.23"]
[EventType "swiss"]
[EventCountry "GEO"]
[SourceTitle "playchess.com"]
[Source "ChessBase"]
[SourceQuality "1"]
[TimeControl "5400+30"]

1. d4 {[%emt 0:00:02]} Nf6 {[%emt 0:00:13]} 2. c4 {[%emt 0:00:16]} e6 {[%emt 0:00:05]} 3. a3 {[%emt 0:00:06]} c5 {[%emt 0:00:04]} 4. d5 {[%emt 0:00:33]} exd5 {[%emt 0:00:09]} 5. cxd5 {[%emt 0:00:04]} d6 {[%emt 0:00:11]} 6. Nc3 {[%emt 0:00:09]} g6 {[%emt 0:00:34]} 7. Bg5 {[%emt 0:00:21]} Bg7 {[%emt 0:02:40]} 8. e4 {[%emt 0:08:18]} O-O {[%emt 0:03:24]} 9. Bd3 {[%emt 0:05:50]} Re8 {[%emt 0:05:43]} 10. Nge2 {[%emt 0:02:04]} a6 {[%emt 0:07:50]} 11. O-O {[%emt 0:08:54]} b5 {[%emt 0:04:11]} 12. Qd2 {[%emt 0:12:01]} Nbd7 {[%emt 0:08:12]} 13. f4 {[%emt 0:10:14]} Qb6 {[%emt 0:07:02]} 14. Kh1 {[%emt 0:05:50]} c4 {[%emt 0:06:51]} 15. Bc2 {[%emt 0:01:47]} Nc5 {[%emt 0:04:12]} 16. Qe3 {[%emt 0:12:55]} Qc7 {[%emt 0:08:22]} 17. e5 {[%emt 0:18:03]} dxe5 {[%emt 0:10:14]} 18. fxe5 {[%emt 0:00:05]} Ng4 {[%emt 0:02:40]} 19. Qd2 {[%emt 0:05:16]} Bxe5 {[%emt 0:05:23]} 20. h3 {[%emt 0:00:21]} Bxc3 {[%emt 0:01:29]} 21. Qf4 {[%emt 0:01:27]} Qxf4 {[%emt 0:01:30]} 22. Nxf4 {[%emt 0:00:07]} Ne3 {[%emt 0:01:19]} 23. Rfc1 {[%emt 0:00:59]} Bxb2 {[%emt 0:00:31]} 24. Re1 {[%emt 0:00:25]} Bxa1 {[%emt 0:00:15]} 25. d6 {[%emt 0:00:11]} Bd7 {[%emt 0:00:54]} 26. Kg1 {[%emt 0:00:58]} 0-1